[Event "1st Heraklion Tal 2019"]
[Site "Heraklion"]
[Date "2019.05.03"]
[Round "5.1"]
[White "Dudin, Gleb"]
[Black "Dimitrov, Atanas"]
[Result "1-0"]
[ECO "A56"]
[WhiteElo "2332"]
[BlackElo "2282"]
[Annotator "ChessBase"]
[PlyCount "97"]
[EventDate "2019.04.29"]
[EventType "tourn"]
[EventCountry "GRE"]
[SourceTitle "playchess.com"]
[Source "ChessBase"]
[SourceQuality "1"]
[TimeControl "40/5400+30:1800+30"]

1. d4 {[%emt 0:00:00]} Nf6 {[%emt 0:00:00]} 2. c4 {[%emt 0:00:00]} c5 {[%emt 0:00:14]} 3. d5 {[%emt 0:00:00]} e5 {[%emt 0:00:20]} 4. Nc3 {[%emt 0:03:42]} d6 {[%emt 0:00:08]} 5. e4 {[%emt 0:03:11]} Be7 {[%emt 0:00:08]} 6. Bd3 {[%emt 0:12:06]} O-O {[%emt 0:00:21]} 7. h3 {[%emt 0:00:25]} Nbd7 {[%emt 0:00:09]} 8. Be3 {[%emt 0:00:43]} a6 {[%emt 0:00:18]} 9. Nge2 {[%emt 0:02:37]} Ne8 {[%emt 0:02:48]} 10. Qd2 {[%emt 0:00:34]} g6 {[%emt 0:00:26]} 11. g4 {[%emt 0:01:12]} Ng7 {[%emt 0:00:16]} 12. Ng3 {[%emt 0:00:04]} Nf6 {[%emt 0:01:37]} 13. Bh6 {[%emt 0:18:06]} Kh8 {[%emt 0:00:08]} 14. O-O-O {[%emt 0:00:07]} Ng8 {[%emt 0:00:10]} 15. Be3 {[%emt 0:00:05]} f5 {[%emt 0:18:02]} 16. exf5 {[%emt 0:07:26]} gxf5 {[%emt 0:01:56]} 17. f4 {[%emt 0:01:47]} e4 {[%emt 0:09:46]} 18. Be2 {[%emt 0:10:39]} b5 {[%emt 0:04:09]} 19. g5 {[%emt 0:03:36]} Bd7 {[%emt 0:12:44]} 20. Rdg1 {[%emt 0:08:25]} Rf7 {[%emt 0:12:01]} 21. Nd1 {[%emt 0:04:37]} Bf8 {[%emt 0:03:04]} 22. Bh5 {[%emt 0:03:08]} Re7 {[%emt 0:00:33]} 23. Qc3 {[%emt 0:01:05]} b4 {[%emt 0:01:22]} 24. Qc2 {[%emt 0:01:17]} a5 {[%emt 0:08:34]} 25. Kb1 {[%emt 0:02:37]} a4 {[%emt 0:00:36]} 26. Qf2 {[%emt 0:00:30]} Qc8 {[%emt 0:07:43]} 27. Be2 {[%emt 0:02:08]} Be8 {[%emt 0:00:08]} 28. Bc1 {[%emt 0:01:02]} Raa7 {[%emt 0:05:28]} 29. Ne3 {[%emt 0:00:24]} Rf7 {[%emt 0:01:43]} 30. h4 {[%emt 0:01:50]} Rfe7 {[%emt 0:00:28]} 31. Bd1 {[%emt 0:02:45]} h5 {[%emt 0:00:36]} 32. gxh6 {[%emt 0:08:28]} Nxh6 {[%emt 0:00:08]} 33. Be2 {[%emt 0:00:44]} Bf7 {[%emt 0:02:07]} 34. Qe1 {[%emt 0:00:39]} Qe8 {[%emt 0:00:39]} 35. Qd1 {[%emt 0:00:09]} Bg6 {[%emt 0:00:38]} 36. Rg2 {[%emt 0:00:23]} Bh7 {[%emt 0:02:52]} 37. Rhg1 {[%emt 0:00:34]} Qf7 {[%emt 0:00:45]} 38. Nh1 {[%emt 0:00:57]} Qf6 {[%emt 0:02:08]} 39. Rg5 {[%emt 0:00:54]} Nf7 {[%emt 0:01:17]} 40. Ng3 {[%emt 0:00:00]} Nh6 {[%emt 0:00:00]} 41. Qf1 {[%emt 0:06:15]} Qf7 {[%emt 0:07:51]} 42. Qh3 {[%emt 0:04:39]} Qf6 {[%emt 0:00:46]} 43. Rg2 {[%emt 0:04:55]} a3 {[%emt 0:00:42]} 44. Bd1 {[%emt 0:02:07]} Reb7 {[%emt 0:00:38]} 45. Bb3 {[%emt 0:02:40]} Rf7 {[%emt 0:09:08]} 46. h5 {[%emt 0:03:10]} Qd4 {[%emt 0:04:28]} 47. Ne2 {[%emt 0:02:08]} Qf6 {[%emt 0:01:55]} 48. Rg6 {[%emt 0:00:19]} Bxg6 {[%emt 0:00:11]} 49. hxg6 {[%emt 0:00:38]} 1-0

[Event "1st Heraklion Tal 2019"]
[Site "Heraklion"]
[Date "2019.05.03"]
[Round "5.3"]
[White "Navaratnam, Rohan Shan Tze"]
[Black "Marinakis, Hristos"]
[Result "1/2-1/2"]
[ECO "E14"]
[WhiteElo "2068"]
[BlackElo "2085"]
[Annotator "NA"]
[PlyCount "71"]
[EventDate "2019.04.29"]
[EventType "tourn"]
[EventCountry "GRE"]
[SourceTitle "playchess.com"]
[Source "ChessBase"]
[SourceQuality "1"]
[TimeControl "40/5400+30:1800+30"]

1. d4 {[%emt 0:00:00]} Nf6 {[%emt 0:00:00]} 2. Nf3 {[%emt 0:00:00]} e6 {[%emt 0:00:00]} 3. c4 {[%emt 0:00:09]} c5 {[%emt 0:00:00]} 4. e3 {[%emt 0:00:27]} Be7 {[%emt 0:01:49]} 5. Nc3 {[%emt 0:00:48]} O-O {[%emt 0:00:20]} 6. Be2 {[%emt 0:01:36]} b6 {[%emt 0:02:18]} 7. O-O {[%emt 0:00:36]} Bb7 {[%emt 0:03:08]} 8. d5 {[%emt 0:01:22]} exd5 {[%emt 0:00:21]} 9. cxd5 {[%emt 0:00:13]} d6 {[%emt 0:00:04]} 10. e4 {[%emt 0:01:18]} a6 {[%emt 0:01:41]} 11. a4 {[%emt 0:01:58]} Re8 {[%emt 0:01:45]} 12. Nd2 {[%emt 0:10:27]} Bf8 {[%emt 0:00:27]} 13. f3 {[%emt 0:00:14]} Nbd7 {[%emt 0:04:59]} 14. Nc4 {[%emt 0:03:40]} g6 {[%emt 0:02:38]} 15. Rb1 {[%emt 0:07:09]} Ne5 {[%emt 0:10:50]} 16. Ne3 {[%emt 0:01:27]} Bg7 {[%emt 0:02:09]} 17. b3 {[%emt 0:03:46]} Ned7 {[%emt 0:06:37]} 18. Nc4 {[%emt 0:02:07]} Nh5 {[%emt 0:01:18]} 19. Qc2 {[%emt 0:08:05]} Qh4 {[%emt 0:12:24]} 20. Be3 {[%emt 0:02:24]} Qe7 {[%emt 0:02:21]} 21. b4 {[%emt 0:10:28]} cxb4 {[%emt 0:03:17]} 22. Rxb4 {[%emt 0:00:07]} Rac8 {[%emt 0:00:11]} 23. Qd2 {[%emt 0:01:53]} Ne5 {[%emt 0:08:24]} 24. Nxe5 {[%emt 0:03:52]} Qxe5 {[%emt 0:00:40]} 25. Bd4 {[%emt 0:05:51]} Qf4 {[%emt 0:00:40]} 26. Qd3 {[%emt 0:02:17]} Bxd4+ {[%emt 0:10:03]} 27. Qxd4 {[%emt 0:00:22]} Qf6 {[%emt 0:00:25]} 28. Qxf6 {[%emt 0:01:17]} Nxf6 {[%emt 0:00:05]} 29. Rxb6 {[%emt 0:00:40]} Rxc3 {[%emt 0:00:57]} 30. Rxb7 {[%emt 0:00:17]} Nxd5 {[%emt 0:01:59]} 31. Bxa6 {[%emt 0:03:08]} Nc7 {[%emt 0:02:44]} 32. Be2 {[%emt 0:04:42]} d5 {[%emt 0:04:40]} 33. Bb5 {[%emt 0:05:01]} Nxb5 {[%emt 0:01:45]} 34. axb5 {[%emt 0:00:06]} Rc2 {[%emt 0:01:31]} 35. h3 {[%emt 0:03:57]} Ra8 {[%emt 0:04:19]} 36. exd5 {[%emt 0:04:52]} 1/2-1/2

[Event "1st Heraklion Tal 2019"]
[Site "Heraklion"]
[Date "2019.05.03"]
[Round "5.4"]
[White "Stoyanov, Tsvetan"]
[Black "Megalios, Konstantinos"]
[Result "0-1"]
[ECO "C55"]
[WhiteElo "2416"]
[BlackElo "2411"]
[Annotator "ChessBase"]
[PlyCount "124"]
[EventDate "2019.04.29"]
[EventType "tourn"]
[EventCountry "GRE"]
[SourceTitle "playchess.com"]
[Source "ChessBase"]
[SourceQuality "1"]
[TimeControl "40/5400+30:1800+30"]

1. e4 {[%emt 0:00:00]} e5 {[%emt 0:00:00]} 2. Nf3 {[%emt 0:00:00]} Nc6 {[%emt 0:00:00]} 3. Bc4 {[%emt 0:00:00]} Nf6 {[%emt 0:00:00]} 4. d3 {[%emt 0:00:06]} h6 {[%emt 0:00:03]} 5. c3 {[%emt 0:02:07]} d6 {[%emt 0:00:11]} 6. a4 {[%emt 0:01:06]} g6 {[%emt 0:01:48]} 7. a5 {[%emt 0:10:29]} a6 {[%emt 0:01:39]} 8. Nbd2 {[%emt 0:01:30]} Bg7 {[%emt 0:00:15]} 9. O-O {[%emt 0:00:07]} O-O {[%emt 0:00:16]} 10. Re1 {[%emt 0:00:25]} Nh5 {[%emt 0:04:27]} 11. Nf1 {[%emt 0:04:14]} Qf6 {[%emt 0:05:25]} 12. h4 {[%emt 0:23:01]} Bg4 {[%emt 0:09:23]} 13. N1h2 {[%emt 0:01:59]} Bd7 {[%emt 0:01:26]} 14. g3 {[%emt 0:04:56]} Rae8 {[%emt 0:07:37]} 15. Nf1 {[%emt 0:01:55]} Qd8 {[%emt 0:03:02]} 16. N3h2 {[%emt 0:03:11]} Kh7 {[%emt 0:10:56]} 17. Ne3 {[%emt 0:02:14]} Bc8 {[%emt 0:05:04]} 18. Bd2 {[%emt 0:11:01]} Qd7 {[%emt 0:09:24]} 19. Qf3 {[%emt 0:11:42]} Ne7 {[%emt 0:04:18]} 20. b4 {[%emt 0:09:57]} f5 {[%emt 0:02:17]} 21. exf5 {[%emt 0:00:33]} Nxf5 {[%emt 0:00:08]} 22. Nxf5 {[%emt 0:01:32]} Rxf5 {[%emt 0:00:40]} 23. Qg2 {[%emt 0:01:14]} c6 {[%emt 0:04:58]} 24. Bb3 {[%emt 0:01:53]} d5 {[%emt 0:01:25]} 25. Bd1 {[%emt 0:00:43]} Rf7 {[%emt 0:02:34]} 26. Bg4 {[%emt 0:02:12]} Qd8 {[%emt 0:02:38]} 27. Re2 {[%emt 0:01:43]} Nf6 {[%emt 0:01:50]} 28. Bxc8 {[%emt 0:00:02]} Qxc8 {[%emt 0:00:07]} 29. Rae1 {[%emt 0:00:38]} e4 {[%emt 0:09:26]} 30. d4 {[%emt 0:01:24]} Ng4 {[%emt 0:03:43]} 31. Qh3 {[%emt 0:00:41]} h5 {[%emt 0:00:22]} 32. Nxg4 {[%emt 0:00:39]} hxg4 {[%emt 0:00:23]} 33. Qh2 {[%emt 0:00:34]} Rf3 {[%emt 0:00:36]} 34. Be3 {[%emt 0:00:55]} Qf5 {[%emt 0:00:28]} 35. Qg2 {[%emt 0:01:11]} Bf8 {[%emt 0:01:32]} 36. Rc1 {[%emt 0:00:43]} Bd6 {[%emt 0:02:30]} 37. Rd1 {[%emt 0:00:33]} Rf8 {[%emt 0:01:35]} 38. Rc1 {[%emt 0:00:27]} Rf7 {[%emt 0:00:08]} 39. Rcc2 {[%emt 0:00:45]} Kg8 {[%emt 0:00:49]} 40. Rc1 {[%emt 0:00:00]} Qe6 {[%emt 0:00:00]} 41. Rcc2 {[%emt 0:03:49]} R7f5 {[%emt 0:02:15]} 42. Rc1 {[%emt 0:01:08]} Qf7 {[%emt 0:01:28]} 43. Rce1 {[%emt 0:02:12]} Qc7 {[%emt 0:01:22]} 44. Qh2 {[%emt 0:00:38]} Kf7 {[%emt 0:03:59]} 45. Rc2 {[%emt 0:03:16]} Ke6 {[%emt 0:02:31]} 46. Rce2 {[%emt 0:00:40]} Rh5 {[%emt 0:02:13]} 47. Rc2 {[%emt 0:01:10]} Qb8 {[%emt 0:04:18]} 48. Rce2 {[%emt 0:03:13]} Rhf5 {[%emt 0:01:08]} 49. Qg2 {[%emt 0:01:26]} Bxg3 {[%emt 0:04:24]} 50. Kh1 {[%emt 0:01:15]} Bxh4 {[%emt 0:02:40]} 51. Qxg4 {[%emt 0:00:01]} Qh8 {[%emt 0:03:10]} 52. Kg2 {[%emt 0:02:37]} Qh5 {[%emt 0:00:44]} 53. Qxh5 {[%emt 0:00:12]} Rxh5 {[%emt 0:01:31]} 54. Rh1 {[%emt 0:01:06]} Kf5 {[%emt 0:00:21]} 55. Ree1 {[%emt 0:00:56]} Bg5 {[%emt 0:01:38]} 56. Rxh5 {[%emt 0:03:17]} gxh5 {[%emt 0:00:02]} 57. Bxg5 {[%emt 0:00:17]} Kxg5 {[%emt 0:00:01]} 58. Rc1 {[%emt 0:00:07]} Rd3 {[%emt 0:00:32]} 59. Rc2 {[%emt 0:00:54]} Kg4 {[%emt 0:00:41]} 60. Kh2 {[%emt 0:01:11]} Rd1 {[%emt 0:01:19]} 61. Kg2 {[%emt 0:03:12]} h4 {[%emt 0:00:08]} 62. c4 {[%emt 0:00:05]} Rxd4 {[%emt 0:01:22]} 0-1

[Event "1st Heraklion Tal 2019"]
[Site "Heraklion"]
[Date "2019.05.03"]
[Round "5.5"]
[White "Antova, Gabriela"]
[Black "De Seroux, Camille"]
[Result "1-0"]
[ECO "E14"]
[WhiteElo "2246"]
[BlackElo "2151"]
[Annotator "NA"]
[PlyCount "73"]
[EventDate "2019.04.29"]
[EventType "tourn"]
[EventCountry "GRE"]
[SourceTitle "playchess.com"]
[Source "ChessBase"]
[SourceQuality "1"]
[TimeControl "40/5400+30:1800+30"]

1. d4 {[%emt 0:00:00]} Nf6 {[%emt 0:00:00]} 2. c4 {[%emt 0:00:00]} e6 {[%emt 0:00:00]} 3. Nf3 {[%emt 0:00:00]} Bb4+ {[%emt 0:00:00]} 4. Nbd2 {[%emt 0:00:00]} b6 {[%emt 0:00:06]} 5. a3 {[%emt 0:00:02]} Bxd2+ {[%emt 0:00:06]} 6. Qxd2 {[%emt 0:00:06]} Bb7 {[%emt 0:01:07]} 7. e3 {[%emt 0:00:18]} a5 {[%emt 0:03:10]} 8. b3 {[%emt 0:13:54]} d6 {[%emt 0:01:15]} 9. Be2 {[%emt 0:01:06]} O-O {[%emt 0:00:41]} 10. O-O {[%emt 0:01:08]} Nbd7 {[%emt 0:00:23]} 11. Bb2 {[%emt 0:01:04]} Ne4 {[%emt 0:11:41]} 12. Qc2 {[%emt 0:00:59]} f5 {[%emt 0:00:25]} 13. d5 {[%emt 0:25:58]} exd5 {[%emt 0:12:52]} 14. Nd4 {[%emt 0:00:11]} Qe7 {[%emt 0:29:41]} 15. cxd5 {[%emt 0:02:42]} Bxd5 {[%emt 0:01:43]} 16. Bc4 {[%emt 0:01:33]} Qf7 {[%emt 0:09:26]} 17. Bxd5 {[%emt 0:02:16]} Qxd5 {[%emt 0:00:48]} 18. Qxc7 {[%emt 0:01:18]} Ne5 {[%emt 0:12:40]} 19. Rad1 {[%emt 0:08:58]} Rf7 {[%emt 0:01:34]} 20. Qc2 {[%emt 0:04:04]} Qc5 {[%emt 0:05:42]} 21. Qe2 {[%emt 0:01:58]} Re8 {[%emt 0:02:10]} 22. Rc1 {[%emt 0:06:20]} Qd5 {[%emt 0:00:09]} 23. Rfd1 {[%emt 0:02:51]} f4 {[%emt 0:02:54]} 24. f3 {[%emt 0:07:13]} Nc5 {[%emt 0:00:32]} 25. e4 {[%emt 0:00:25]} Qa8 {[%emt 0:00:42]} 26. b4 {[%emt 0:02:29]} Nb7 {[%emt 0:01:37]} 27. Nf5 {[%emt 0:03:05]} Qd8 {[%emt 0:00:52]} 28. Qb5 {[%emt 0:01:19]} Re6 {[%emt 0:00:40]} 29. Qd5 {[%emt 0:02:52]} Qf6 {[%emt 0:00:27]} 30. Rc8+ {[%emt 0:01:17]} Rf8 {[%emt 0:00:04]} 31. Bxe5 {[%emt 0:00:50]} dxe5 {[%emt 0:00:14]} 32. Rxf8+ {[%emt 0:00:18]} Kxf8 {[%emt 0:00:09]} 33. Qxb7 {[%emt 0:00:06]} g6 {[%emt 0:01:19]} 34. Nh6 {[%emt 0:01:13]} Re7 {[%emt 0:00:11]} 35. Qb8+ {[%emt 0:01:44]} Kg7 {[%emt 0:00:32]} 36. Ng4 {[%emt 0:00:18]} axb4 {[%emt 0:00:15]} 37. Nxf6 {[%emt 0:00:07]} 1-0

[Event "1st Heraklion Tal 2019"]
[Site "Heraklion"]
[Date "2019.05.04"]
[Round "6.5"]
[White "Dudin, Gleb"]
[Black "Kozhuharov, Spas"]
[Result "1/2-1/2"]
[ECO "A30"]
[WhiteElo "2332"]
[BlackElo "2434"]
[Annotator "NA"]
[PlyCount "63"]
[EventDate "2019.04.29"]
[EventType "tourn"]
[EventCountry "GRE"]
[SourceTitle "playchess.com"]
[Source "ChessBase"]
[SourceQuality "1"]
[TimeControl "40/5400+30:1800+30"]

1. Nf3 {[%emt 0:03:12]} Nf6 {[%emt 0:00:15]} 2. c4 {[%emt 0:00:10]} e6 {[%emt 0:00:47]} 3. e3 {[%emt 0:03:03]} c5 {[%emt 0:01:23]} 4. b3 {[%emt 0:02:29]} Be7 {[%emt 0:01:29]} 5. Bb2 {[%emt 0:00:07]} O-O {[%emt 0:00:04]} 6. Be2 {[%emt 0:00:26]} b6 {[%emt 0:00:56]} 7. O-O {[%emt 0:00:05]} Bb7 {[%emt 0:00:31]} 8. d3 {[%emt 0:06:56]} d5 {[%emt 0:02:12]} 9. Nbd2 {[%emt 0:02:30]} Nc6 {[%emt 0:06:57]} 10. cxd5 {[%emt 0:00:47]} Qxd5 {[%emt 0:02:10]} 11. a3 {[%emt 0:00:23]} Rfd8 {[%emt 0:03:46]} 12. Qc2 {[%emt 0:00:12]} Ng4 {[%emt 0:13:38]} 13. Rfd1 {[%emt 0:10:09]} Bf6 {[%emt 0:06:31]} 14. h3 {[%emt 0:09:30]} Bxb2 {[%emt 0:03:35]} 15. Qxb2 {[%emt 0:00:06]} Nf6 {[%emt 0:02:44]} 16. Rac1 {[%emt 0:04:20]} Rac8 {[%emt 0:01:48]} 17. Bf1 {[%emt 0:00:46]} h6 {[%emt 0:00:58]} 18. Nc4 {[%emt 0:02:15]} Kf8 {[%emt 0:09:58]} 19. d4 {[%emt 0:27:24]} cxd4 {[%emt 0:03:44]} 20. Nxd4 {[%emt 0:00:12]} Nxd4 {[%emt 0:02:30]} 21. Rxd4 {[%emt 0:00:08]} Qc5 {[%emt 0:01:36]} 22. b4 {[%emt 0:06:16]} Qc7 {[%emt 0:04:22]} 23. Na5 {[%emt 0:04:22]} Qe7 {[%emt 0:03:34]} 24. Nxb7 {[%emt 0:03:01]} Qxb7 {[%emt 0:00:18]} 25. Rxd8+ {[%emt 0:00:23]} Rxd8 {[%emt 0:00:05]} 26. Be2 {[%emt 0:01:35]} Rc8 {[%emt 0:03:15]} 27. Rd1 {[%emt 0:07:12]} Ke7 {[%emt 0:00:25]} 28. Bf3 {[%emt 0:02:39]} Qc7 {[%emt 0:00:07]} 29. Qd4 {[%emt 0:00:49]} Rd8 {[%emt 0:02:17]} 30. Qxd8+ {[%emt 0:00:15]} Qxd8 {[%emt 0:00:05]} 31. Rxd8 {[%emt 0:00:05]} Kxd8 {[%emt 0:00:02]} 32. Kf1 {[%emt 0:00:06]} 1/2-1/2

[Event "1st Heraklion Tal 2019"]
[Site "Heraklion"]
[Date "2019.05.05"]
[Round "7.1"]
[White "Kozhuharov, Spas"]
[Black "Dimitrov, Atanas"]
[Result "1/2-1/2"]
[ECO "B13"]
[WhiteElo "2434"]
[BlackElo "2282"]
[Annotator "NA"]
[PlyCount "30"]
[EventDate "2019.04.29"]
[EventType "tourn"]
[EventCountry "GRE"]
[SourceTitle "playchess.com"]
[Source "ChessBase"]
[SourceQuality "1"]
[TimeControl "40/5400+30:1800+30"]

1. d4 {[%emt 0:00:00]} d5 {[%emt 0:00:00]} 2. Bf4 {[%emt 0:00:00]} c5 {[%emt 0:00:00]} 3. e3 {[%emt 0:00:01]} cxd4 {[%emt 0:00:00]} 4. exd4 {[%emt 0:00:05]} Nc6 {[%emt 0:00:00]} 5. c3 {[%emt 0:00:35]} Nf6 {[%emt 0:00:04]} 6. Bd3 {[%emt 0:00:44]} g6 {[%emt 0:02:16]} 7. Nd2 {[%emt 0:02:23]} Bg7 {[%emt 0:00:06]} 8. Ne2 {[%emt 0:00:39]} O-O {[%emt 0:00:52]} 9. h3 {[%emt 0:01:24]} Nd7 {[%emt 0:05:41]} 10. Nf3 {[%emt 0:09:32]} e5 {[%emt 0:03:18]} 11. dxe5 {[%emt 0:02:21]} Ndxe5 {[%emt 0:00:10]} 12. Nxe5 {[%emt 0:00:05]} Nxe5 {[%emt 0:00:09]} 13. Bc2 {[%emt 0:00:24]} Qb6 {[%emt 0:14:05]} 14. Rb1 {[%emt 0:07:14]} Re8 {[%emt 0:01:24]} 15. O-O {[%emt 0:01:37]} Qa6 {[%emt 0:11:46]} 1/2-1/2

[Event "1st Heraklion Tal 2019"]
[Site "Heraklion"]
[Date "2019.05.05"]
[Round "7.2"]
[White "Navaratnam, Rohan Shan Tze"]
[Black "Dudin, Gleb"]
[Result "1/2-1/2"]
[ECO "B06"]
[WhiteElo "2068"]
[BlackElo "2332"]
[Annotator "ChessBase"]
[PlyCount "191"]
[EventDate "2019.04.29"]
[EventType "tourn"]
[EventCountry "GRE"]
[SourceTitle "playchess.com"]
[Source "ChessBase"]
[SourceQuality "1"]
[TimeControl "40/5400+30:1800+30"]

1. e4 {[%emt 0:00:00]} g6 {[%emt 0:05:34]} 2. d4 {[%emt 0:00:00]} Bg7 {[%emt 0:00:05]} 3. Nf3 {[%emt 0:00:00]} d6 {[%emt 0:00:26]} 4. c3 {[%emt 0:00:02]} Nd7 {[%emt 0:02:01]} 5. Bd3 {[%emt 0:02:05]} a6 {[%emt 0:00:55]} 6. O-O {[%emt 0:01:12]} e6 {[%emt 0:05:20]} 7. Bg5 {[%emt 0:09:17]} Ne7 {[%emt 0:00:42]} 8. Qd2 {[%emt 0:00:37]} h6 {[%emt 0:00:10]} 9. Be3 {[%emt 0:00:41]} b6 {[%emt 0:00:38]} 10. c4 {[%emt 0:08:14]} Bb7 {[%emt 0:02:21]} 11. Nc3 {[%emt 0:00:21]} g5 {[%emt 0:07:28]} 12. Ne1 {[%emt 0:07:54]} Ng6 {[%emt 0:17:47]} 13. Ne2 {[%emt 0:06:16]} Qe7 {[%emt 0:11:14]} 14. Nc2 {[%emt 0:02:51]} Bf6 {[%emt 0:07:33]} 15. b4 {[%emt 0:11:10]} c5 {[%emt 0:10:21]} 16. bxc5 {[%emt 0:12:13]} bxc5 {[%emt 0:05:35]} 17. Rab1 {[%emt 0:01:24]} cxd4 {[%emt 0:00:40]} 18. Bxd4 {[%emt 0:06:09]} Nc5 {[%emt 0:02:01]} 19. Bxf6 {[%emt 0:10:57]} Qxf6 {[%emt 0:00:06]} 20. f3 {[%emt 0:00:10]} Ne5 {[%emt 0:04:00]} 21. Nc1 {[%emt 0:00:01]} Qf4 {[%emt 0:02:17]} 22. Qxf4 {[%emt 0:04:42]} gxf4 {[%emt 0:00:02]} 23. Rd1 {[%emt 0:00:00]} O-O-O {[%emt 0:09:36]} 24. Bf1 {[%emt 0:00:20]} Kc7 {[%emt 0:00:40]} 25. Ne2 {[%emt 0:01:29]} Ng6 {[%emt 0:01:26]} 26. g3 {[%emt 0:02:30]} fxg3 {[%emt 0:00:31]} 27. hxg3 {[%emt 0:00:01]} Ne5 {[%emt 0:00:22]} 28. Ned4 {[%emt 0:00:33]} Rdg8 {[%emt 0:01:23]} 29. Kf2 {[%emt 0:00:36]} h5 {[%emt 0:00:55]} 30. Nb3 {[%emt 0:02:31]} Rg7 {[%emt 0:02:07]} 31. Ncd4 {[%emt 0:03:04]} Ned7 {[%emt 0:00:40]} 32. Ne2 {[%emt 0:03:18]} Rf8 {[%emt 0:00:31]} 33. Bh3 {[%emt 0:01:13]} Bc6 {[%emt 0:00:29]} 34. Rh1 {[%emt 0:00:30]} Nd3+ {[%emt 0:00:31]} 35. Ke3 {[%emt 0:00:35]} N3e5 {[%emt 0:00:07]} 36. Rbc1 {[%emt 0:00:22]} Rfg8 {[%emt 0:00:29]} 37. c5 {[%emt 0:01:02]} d5 {[%emt 0:00:37]} 38. Nbd4 {[%emt 0:00:24]} Nc4+ {[%emt 0:00:46]} 39. Kf2 {[%emt 0:00:29]} Nde5 {[%emt 0:00:28]} 40. Rc3 {[%emt 0:00:00]} dxe4 {[%emt 0:01:59]} 41. Nxc6 {[%emt 0:03:16]} Kxc6 {[%emt 0:05:42]} 42. fxe4 {[%emt 0:01:19]} Rd8 {[%emt 0:04:09]} 43. Bf1 {[%emt 0:12:24]} Ng4+ {[%emt 0:13:20]} 44. Ke1 {[%emt 0:04:40]} Nce3 {[%emt 0:03:17]} 45. Nf4 {[%emt 0:00:32]} Rb8 {[%emt 0:01:46]} 46. Bd3 {[%emt 0:05:25]} e5 {[%emt 0:02:32]} 47. Ne2 {[%emt 0:03:31]} Rh7 {[%emt 0:00:50]} 48. Ra3 {[%emt 0:00:38]} Kxc5 {[%emt 0:00:42]} 49. Ra5+ {[%emt 0:00:20]} Kb4 {[%emt 0:00:35]} 50. Rxa6 {[%emt 0:00:02]} Rd8 {[%emt 0:00:20]} 51. Rb6+ {[%emt 0:02:11]} Kc5 {[%emt 0:00:07]} 52. Rb5+ {[%emt 0:00:27]} Kc6 {[%emt 0:00:11]} 53. Rb3 {[%emt 0:00:09]} f6 {[%emt 0:01:12]} 54. Kd2 {[%emt 0:00:55]} Ra7 {[%emt 0:00:48]} 55. a3 {[%emt 0:01:58]} Rd6 {[%emt 0:00:34]} 56. Rc3+ {[%emt 0:01:10]} Kd7 {[%emt 0:00:24]} 57. Rxh5 {[%emt 0:01:37]} Ke6 {[%emt 0:00:35]} 58. Rh8 {[%emt 0:00:39]} Rad7 {[%emt 0:00:30]} 59. Nc1 {[%emt 0:00:51]} f5 {[%emt 0:00:26]} 60. exf5+ {[%emt 0:01:16]} Kf6 {[%emt 0:00:00]} 61. Re8 {[%emt 0:00:55]} Nf1+ {[%emt 0:01:01]} 62. Kc2 {[%emt 0:00:31]} Nge3+ {[%emt 0:00:33]} 63. Kb3 {[%emt 0:00:20]} Rb6+ {[%emt 0:00:29]} 64. Ka2 {[%emt 0:00:10]} Rdb7 {[%emt 0:00:32]} 65. Re6+ {[%emt 0:00:56]} Rxe6 {[%emt 0:00:14]} 66. fxe6 {[%emt 0:00:04]} Nd2 {[%emt 0:00:47]} 67. Ba6 {[%emt 0:00:42]} Rb6 {[%emt 0:00:29]} 68. Bc8 {[%emt 0:01:03]} Nd1 {[%emt 0:00:30]} 69. Rc2 {[%emt 0:00:22]} Ne4 {[%emt 0:00:14]} 70. Nb3 {[%emt 0:00:29]} Nec3+ {[%emt 0:00:29]} 71. Rxc3 {[%emt 0:00:34]} Nxc3+ {[%emt 0:00:01]} 72. Kb2 {[%emt 0:00:02]} Na4+ {[%emt 0:00:29]} 73. Ka2 {[%emt 0:00:00]} Rc6 {[%emt 0:00:38]} 74. Bd7 {[%emt 0:00:01]} Rc2+ {[%emt 0:00:08]} 75. Kb1 {[%emt 0:00:25]} Rb2+ {[%emt 0:00:28]} 76. Kc1 {[%emt 0:00:01]} Rxb3 {[%emt 0:00:03]} 77. Bxa4 {[%emt 0:00:09]} Rxa3 {[%emt 0:00:37]} 78. Bd7 {[%emt 0:00:01]} Rd3 {[%emt 0:00:34]} 79. Kc2 {[%emt 0:00:20]} Rd6 {[%emt 0:00:04]} 80. g4 {[%emt 0:00:32]} Rd4 {[%emt 0:02:14]} 81. g5+ {[%emt 0:00:22]} Ke7 {[%emt 0:00:07]} 82. g6 {[%emt 0:01:21]} Rg4 {[%emt 0:00:34]} 83. Kd3 {[%emt 0:00:08]} Kd6 {[%emt 0:00:26]} 84. g7 {[%emt 0:00:34]} Rxg7 {[%emt 0:00:15]} 85. Ke4 {[%emt 0:00:05]} Rg4+ {[%emt 0:00:47]} 86. Kf3 {[%emt 0:00:02]} Rf4+ {[%emt 0:00:49]} 87. Ke3 {[%emt 0:00:01]} Rh4 {[%emt 0:00:08]} 88. Kd3 {[%emt 0:00:13]} Rh7 {[%emt 0:00:41]} 89. Ke4 {[%emt 0:00:08]} Re7 {[%emt 0:00:15]} 90. Bc8 {[%emt 0:00:26]} Rc7 {[%emt 0:00:53]} 91. Bd7 {[%emt 0:00:11]} Rc4+ {[%emt 0:00:17]} 92. Kd3 {[%emt 0:00:01]} Rd4+ {[%emt 0:00:41]} 93. Ke3 {[%emt 0:00:01]} Ke7 {[%emt 0:00:07]} 94. Kf3 {[%emt 0:00:42]} Kf6 {[%emt 0:00:11]} 95. Ke3 {[%emt 0:00:05]} Rxd7 {[%emt 0:01:03]} 96. exd7 {[%emt 0:00:10]} 1/2-1/2

[Event "1st Heraklion Tal 2019"]
[Site "Heraklion"]
[Date "2019.05.05"]
[Round "7.4"]
[White "Antova, Gabriela"]
[Black "Marinakis, Hristos"]
[Result "1/2-1/2"]
[ECO "E10"]
[WhiteElo "2246"]
[BlackElo "2085"]
[Annotator "NA"]
[PlyCount "62"]
[EventDate "2019.04.29"]
[EventType "tourn"]
[EventCountry "GRE"]
[SourceTitle "playchess.com"]
[Source "ChessBase"]
[SourceQuality "1"]
[TimeControl "40/5400+30:1800+30"]

1. d4 {[%emt 0:00:00]} Nf6 {[%emt 0:00:00]} 2. c4 {[%emt 0:00:00]} e6 {[%emt 0:00:00]} 3. Nf3 {[%emt 0:00:00]} c5 {[%emt 0:00:00]} 4. d5 {[%emt 0:00:01]} b5 {[%emt 0:00:00]} 5. Bg5 {[%emt 0:00:12]} exd5 {[%emt 0:00:04]} 6. cxd5 {[%emt 0:00:08]} d6 {[%emt 0:00:03]} 7. e4 {[%emt 0:00:13]} a6 {[%emt 0:00:16]} 8. a4 {[%emt 0:00:15]} Be7 {[%emt 0:00:45]} 9. Bxf6 {[%emt 0:00:57]} Bxf6 {[%emt 0:00:07]} 10. axb5 {[%emt 0:00:03]} Bxb2 {[%emt 0:01:33]} 11. Ra2 {[%emt 0:00:08]} Bf6 {[%emt 0:00:23]} 12. Bd3 {[%emt 0:00:16]} O-O {[%emt 0:01:33]} 13. O-O {[%emt 0:00:27]} Bb7 {[%emt 0:02:26]} 14. Nbd2 {[%emt 0:01:09]} axb5 {[%emt 0:02:21]} 15. Rxa8 {[%emt 0:00:12]} Bxa8 {[%emt 0:00:02]} 16. Bxb5 {[%emt 0:00:10]} Nd7 {[%emt 0:04:03]} 17. Qa4 {[%emt 0:02:00]} Ne5 {[%emt 0:09:55]} 18. Nxe5 {[%emt 0:12:27]} Bxe5 {[%emt 0:00:04]} 19. Nc4 {[%emt 0:06:22]} Bd4 {[%emt 0:07:44]} 20. Bc6 {[%emt 0:07:27]} Bxc6 {[%emt 0:03:15]} 21. Qxc6 {[%emt 0:00:34]} Qe7 {[%emt 0:07:15]} 22. Nxd6 {[%emt 0:05:05]} Rd8 {[%emt 0:00:47]} 23. Nb7 {[%emt 0:30:05]} Rb8 {[%emt 0:03:49]} 24. Nd6 {[%emt 0:00:11]} Rd8 {[%emt 0:00:57]} 25. Nb7 {[%emt 0:01:15]} Rb8 {[%emt 0:00:23]} 26. Nd6 {[%emt 0:01:01]} g6 {[%emt 0:12:23]} 27. g3 {[%emt 0:04:42]} Rd8 {[%emt 0:04:24]} 28. Nb7 {[%emt 0:00:18]} Rb8 {[%emt 0:00:46]} 29. Nd6 {[%emt 0:00:23]} Rd8 {[%emt 0:00:29]} 30. Nb7 {[%emt 0:00:13]} Rb8 {[%emt 0:00:40]} 31. Nd6 {[%emt 0:00:09]} Rd8 {[%emt 0:01:25]} 1/2-1/2